bitfinex/quotes_ETHUSD_20251217
["timestamp","ask_amount","ask_price","bid_price","bid_amount"]
[1765931674746,1.00138023,2952.7,2951.9,0.002]
[1765931675076,0.537,2952.7,2951.9,0.002]
[1765931680574,1.00138023,2952.7,2951.9,0.002]
[1765931681272,0.537,2952.7,2951.9,0.002]
[1765931682468,0.537,2952.7,2951.9,0.4819]
[1765931683090,0.537,2952.7,2951.9,1.05004872]
[1765931683286,0.537,2952.7,2952.0,6.77506774]
[1765931683493,0.537,2952.7,2952.1,0.4799]
[1765931685699,0.537,2952.7,2952.2,3.38730438]
[1765931687603,0.537,2952.7,2952.1,3.38736363]
[1765931688102,0.537,2952.7,2951.9,3.38961658]
[1765931688508,0.537,2952.7,2951.9,0.002]
[1765931688878,1.00138023,2952.7,2951.9,0.002]
[1765931689083,0.43890586,2952.6,2951.9,0.002]
[1765931689704,0.537,2952.7,2951.9,0.002]
[1765931689889,0.538,2952.7,2952.0,2.1184]
[1765931690218,0.538,2952.7,2952.1,3.38741912]
[1765931695829,0.538,2952.7,2952.2,2.1184]
[1765931699128,0.538,2952.7,2952.2,5.50569381]
[1765931700039,0.538,2952.7,2952.2,2.1184]
[1765931701206,0.97698865,2952.7,2952.2,2.1184]
[1765931701696,0.97698865,2952.7,2952.3,2.1184]
[1765931702131,0.538,2952.7,2952.3,2.1184]
[1765931703700,0.538,2952.7,2952.4,0.03387074]
[1765931703907,0.538,2952.7,2952.3,2.1184]
[1765931705834,0.538,2952.7,2952.3,5.97828095]
[1765931706007,0.538,2952.7,2952.3,5.50558095]
[1765931706208,0.538,2952.7,2952.3,6.46628279]
[1765931706944,0.538,2952.7,2952.3,3.07910184]
[1765931707439,0.538,2952.7,2952.3,3.55180184]
[1765931707640,0.538,2952.7,2952.4,2.1184]
[1765931707858,0.538,2952.7,2952.4,2.5911]
[1765931708060,0.538,2952.7,2952.5,0.69389799]
[1765931708252,0.538,2952.7,2952.6,2.1184]
[1765931711671,0.538,2952.7,2952.6,2.582]
[1765931711965,0.538,2952.7,2952.6,6.44154549]
[1765931712164,0.538,2952.7,2952.6,3.0547]
[1765931712333,0.538,2952.7,2952.6,4.03756879]
[1765931713968,0.538,2952.7,2952.6,12.25135791]
[1765931714169,0.538,2952.7,2952.6,8.39181242]
[1765931714355,0.538,2952.7,2952.6,2.582]
[1765931714549,0.538,2952.7,2952.6,3.0547]
[1765931716373,0.538,2952.7,2952.6,6.44154549]
[1765931716663,0.538,2952.7,2952.6,3.0547]
[1765931717474,0.538,2952.7,2952.6,7.87870331]
[1765931717770,0.538,2952.7,2952.6,11.2655488]
[1765931717970,0.538,2952.7,2952.6,7.87870331]
[1765931718851,0.538,2952.7,2952.6,11.2655488]
[1765931719173,0.538,2952.7,2952.6,7.87870331]
[1765931719471,0.538,2952.7,2952.6,11.2655488]
[1765931719660,0.538,2952.7,2952.6,7.87870331]
[1765931720065,0.538,2952.7,2952.6,2.1184]
[1765931720369,0.538,2952.7,2952.6,2.582]
[1765931720553,0.538,2952.7,2952.6,2.1184]
[1765931721447,0.93055163,2952.7,2952.6,2.1184]
[1765931722338,0.538,2952.7,2952.6,2.1184]
[1765931734786,3.92473078,2952.7,2952.6,2.1184]
[1765931735184,7.77584179,2952.7,2952.0,2.1184]
[1765931735416,4.82400331,2952.6,2952.0,2.1184]
[1765931735800,3.3869602,2952.5,2952.0,2.1184]
[1765931736109,4.98564073,2952.5,2952.0,2.1184]
[1765931736415,8.37260093,2952.5,2952.0,2.1184]
[1765931736715,4.98564073,2952.5,2952.0,2.1184]
[1765931737089,1.59868053,2952.5,2952.0,2.1184]
[1765931738036,4.98567026,2952.5,2952.0,2.1184]
[1765931738708,1.59868053,2952.5,2952.0,2.1184]
[1765931739014,3.38689632,2952.6,2952.0,2.1184]
[1765931739419,1.00238023,2952.7,2952.3,0.4845]
[1765931739602,4.38914407,2952.7,2952.0,2.1184]
[1765931740042,7.77590791,2952.7,2952.0,2.1184]
[1765931740224,0.77769079,2952.6,2952.0,2.1184]
[1765931740531,4.38914407,2952.7,2952.1,2.1184]
[1765931741802,0.001,2952.7,2952.6,5.79060331]
[1765931742136,0.001,2952.7,2952.6,0.4821]
[1765931742338,0.001,2952.7,2952.6,0.9666]
[1765931742728,0.001,2952.7,2952.6,0.4821]
[1765931743138,0.001,2952.7,2952.6,0.9666]
[1765931743343,0.001,2952.7,2952.6,0.4821]
[1765931745140,0.001,2952.7,2952.6,5.79060331]
[1765931745312,0.001,2952.7,2952.6,6.70835815]
[1765931746050,0.001,2952.7,2952.6,10.09520364]
[1765931746257,0.001,2952.7,2952.6,6.70835815]
[1765931747080,0.001,2952.7,2952.6,8.82675815]
[1765931747737,0.001,2952.7,2952.6,12.21360364]
[1765931748583,0.001,2952.7,2952.6,8.82675815]
[1765931749669,0.001,2952.7,2952.6,4.00275484]
[1765931751367,0.001,2952.7,2952.6,3.085]
[1765931761712,0.001,2952.7,2952.6,2.1184]
[1765931762114,0.001,2952.7,2952.6,2.6005]
[1765931762511,0.001,2952.7,2952.6,3.085]
[1765931763817,0.001,2952.7,2952.6,11.29612719]
[1765931764017,0.001,2952.7,2952.6,13.24685975]
[1765931764205,0.001,2952.7,2952.6,8.42257805]
[1765931768296,0.001,2952.7,2952.6,13.24685975]
[1765931768821,0.001,2952.7,2952.6,8.42257805]
[1765931770319,0.001,2952.7,2952.6,13.24685975]
[1765931770819,0.001,2952.7,2952.6,19.67685975]
[1765931773798,0.001,2952.7,2952.6,20.14123998]
[1765931773999,0.001,2952.8,2952.7,3.93388423]
[1765931774319,0.001,2952.8,2952.7,12.05085393]
[1765931774521,0.001,2952.8,2952.7,12.01698663]
[1765931775586,0.001,2952.8,2952.7,21.83371741]
[1765931777422,0.001,2952.8,2952.7,21.83102518]
[1765931778325,0.001,2953.0,2952.9,0.9466]
[1765931778624,0.001,2953.1,2953.0,11.05415917]
[1765931779416,0.001,2953.1,2953.0,6.2325697]
[1765931780104,0.001,2953.1,2953.0,9.61895642]
[1765931780330,0.001,2953.1,2953.0,11.03925177]
[1765931781823,0.001,2953.2,2953.0,11.03925177]
[1765931782016,0.536,2953.8,2953.6,0.4764]
[1765931782218,0.536,2953.8,2953.6,3.062]
[1765931782598,0.536,2953.8,2953.6,2.5918]
[1765931782996,0.536,2953.8,2953.6,3.062]
[1765931783505,0.536,2953.8,2953.6,11.26928827]
[1765931783711,0.536,2953.8,2953.6,12.73479811]
[1765931784307,0.536,2953.8,2953.6,19.16479811]
[1765931784627,0.001,2954.2,2953.6,19.16479811]
[1765931793837,0.001,2954.2,2953.8,3.061]
[1765931794538,0.537,2953.9,2953.8,2.1144]
[1765931798659,0.537,2953.9,2953.8,3.0703]
[1765931798872,0.537,2953.9,2953.8,6.45576956]
[1765931801548,0.001,2953.9,2953.8,6.45576956]
[1765931801847,0.001,2953.9,2953.8,7.92206341]
[1765931802928,0.001,2954.2,2953.8,7.92206341]
[1765931802929,0.001,2954.2,2953.9,3.0693]
[1765931803130,0.001,2954.2,2953.9,3.10315354]
[1765931803328,0.001,2954.2,2953.9,9.4993]
[1765931804551,0.001,2954.2,2953.9,12.88465495]
[1765931804850,0.001,2954.2,2953.9,15.96117263]
[1765931806528,0.001,2954.2,2953.9,16.42555286]
[1765931808427,0.001,2954.2,2954.1,5.00300598]
[1765931808627,0.001,2954.2,2954.1,9.82459545]
[1765931810856,0.001,2954.2,2954.1,10.23009945]
[1765931811156,0.001,2954.3,2954.2,0.9559]
[1765931811334,0.001,2954.3,2954.2,8.28963434]
[1765931811534,0.001,2954.3,2954.2,8.25578423]
[1765931812360,0.001,2954.4,2954.3,1.82578423]
[1765931812547,0.001,2954.4,2954.3,1.42028023]
[1765931812751,0.001,2954.4,2954.3,6.00267462]
[1765931816856,0.001,2954.4,2954.3,6.03652358]
[1765931817554,0.537,2955.2,2955.0,0.9559]
[1765931817755,0.537,2955.2,2955.0,7.88688947]
[1765931817977,0.001,2955.2,2955.0,7.88688947]
[1765931818436,0.001,2955.2,2955.0,7.8809861]
[1765931818635,0.001,2955.2,2955.0,9.31208471]
[1765931820172,0.001,2955.2,2955.0,12.69617946]
[1765931823564,0.001,2955.4,2955.3,0.9559]
[1765931824074,0.001,2955.4,2955.3,12.72850971]
[1765931824271,0.001,2955.4,2955.3,3.0633]
[1765931825237,0.001,2955.4,2955.2,2.1074]
[1765931825880,0.001,2955.4,2954.7,2.1074]
[1765931826573,0.001,2955.4,2954.8,0.4955]
[1765931826755,0.67798155,2955.4,2954.8,0.4955]
[1765931827367,0.67798155,2955.4,2954.7,2.1074]
[1765931829076,6.76750244,2955.3,2954.8,2.1074]
[1765931829263,0.536,2955.2,2954.9,2.1074]
[1765931829467,0.73035024,2955.1,2954.9,2.1074]
[1765931830675,0.73035024,2955.1,2954.5,2.1074]
[1765931830847,0.73035024,2955.1,2954.6,2.1074]
[1765931831175,0.73035024,2955.1,2954.3,0.002]
[1765931831176,6.7681895,2955.0,2954.3,0.002]
[1765931831375,6.94126255,2955.0,2954.3,2.1094]
[1765931832170,6.94126255,2955.0,2954.3,0.002]
[1765931832171,10.3253573,2955.0,2954.3,0.002]
[1765931832488,1.10557075,2954.9,2954.3,0.002]
[1765931833290,6.76864762,2954.8,2954.3,0.002]
[1765931833493,1.00038023,2954.7,2954.3,0.002]
[1765931833791,5.2211901,2954.4,2954.3,0.002]
[1765931834118,0.405504,2954.3,2953.6,0.002]
[1765931834267,5.2211901,2954.1,2953.6,0.002]
[1765931835164,0.86988423,2953.9,2953.6,0.002]
[1765931835869,0.4955,2953.8,2953.6,0.002]
[1765931836159,0.536,2953.7,2953.6,0.002]
[1765931836387,0.72613842,2953.7,2953.6,0.002]
[1765931837160,4.57610283,2953.7,2953.6,0.002]
[1765931839298,4.38596441,2953.7,2953.6,0.002]
[1765931840367,9.20810502,2953.7,2953.6,0.002]
[1765931840794,4.38596441,2953.7,2953.6,0.002]
[1765931844902,3.92158418,2953.7,2953.6,0.002]
[1765931845271,0.536,2953.7,2953.6,0.002]
[1765931846106,3.92158418,2953.7,2953.6,0.002]
[1765931847107,0.536,2953.7,2953.6,0.4994]
[1765931852223,0.536,2953.7,2953.6,0.002]
[1765931852424,8.74372479,2953.7,2953.6,0.002]
[1765931852718,9.95664439,2953.7,2953.6,0.002]
[1765931856422,5.13450378,2953.7,2953.6,0.002]
[1765931860119,19.03425341,2953.7,2953.5,0.002]
[1765931860286,0.86988423,2953.6,2953.5,0.001]
[1765931860488,3.02238438,2953.6,2953.5,0.001]
[1765931860784,3.40350724,2953.6,2953.1,0.002]
[1765931861014,5.69202484,2953.2,2953.1,0.002]
[1765931861184,6.22802484,2953.2,2953.1,0.002]
[1765931861581,6.3637858,2953.2,2953.1,0.002]
[1765931862224,9.74994318,2953.2,2953.1,0.002]
[1765931869551,10.85551393,2953.2,2953.1,0.002]
[1765931872320,10.8724324,2953.2,2953.1,0.002]
[1765931878764,11.2119324,2953.2,2953.1,0.002]
[1765931878947,10.8724324,2953.2,2953.1,0.002]
[1765931879460,40.8724324,2953.2,2953.1,0.002]
[1765931880460,10.8724324,2953.2,2953.1,0.002]
[1765931880757,40.8724324,2953.2,2953.1,0.002]
[1765931881366,40.73667144,2953.2,2953.1,0.002]
[1765931882418,20.95034136,2953.2,2953.1,0.002]
[1765931882625,35.89761236,2953.2,2953.1,0.002]
[1765931882954,35.91453083,2953.2,2953.1,0.002]
[1765931887459,40.7424036,2953.2,2953.1,0.002]
[1765931888761,10.7424036,2953.2,2953.1,0.002]
[1765931888935,40.7424036,2953.2,2953.1,0.002]
[1765931890259,40.7424036,2953.2,2953.1,0.00015952]
[1765931890463,40.91949863,2953.2,2953.1,0.00015952]
[1765931890628,10.91949863,2953.2,2953.1,0.00015952]
[1765931890829,41.05527157,2953.2,2953.1,0.00015952]
[1765931894462,21.28973986,2953.2,2953.1,0.00015952]
[1765931894840,27.89159786,2953.2,2953.1,0.00015952]
[1765931895469,28.02736573,2953.2,2953.1,0.00015952]
[1765931895970,0.405504,2952.7,2952.0,0.002]
[1765931896171,41.07854824,2952.6,2952.0,0.002]
[1765931897230,44.46539373,2952.6,2952.0,0.002]
[1765931898123,30.86988423,2952.5,2952.4,1e-08]
[1765931898332,32.08280383,2952.5,2952.4,1e-08]
[1765931899363,40.30011052,2952.5,2952.4,1e-08]
[1765931902467,0.86988423,2952.3,2952.0,0.002]
[1765931902663,35.71714919,2952.1,2952.0,0.002]
[1765931902867,37.43450969,2952.1,2952.0,0.002]
[1765931903235,37.57033104,2952.1,2952.0,0.002]
[1765931903854,40.82192881,2952.1,2952.0,0.002]
[1765931906040,45.6522753,2952.1,2952.0,0.002]
[1765931906239,0.405504,2951.7,2951.3,0.002]
[1765931906463,35.70023072,2951.4,2951.3,0.002]
[1765931908073,39.08845325,2951.4,2951.3,0.002]
[1765931913292,9.23090976,2951.4,2951.3,0.002]
[1765931913697,8.76652953,2951.4,2951.3,0.002]
[1765931913862,3.38822253,2951.4,2951.3,0.002]
[1765931914062,8.26234676,2951.4,2951.3,0.002]
[1765931915583,3.38822253,2951.4,2951.3,0.002]
[1765931915892,3.38812975,2951.5,2951.3,0.002]
[1765931918129,0.46438023,2951.5,2951.3,0.4569]
[1765931918275,0.46438023,2951.5,2951.3,0.002]
[1765931919582,3.38822253,2951.4,2951.3,0.002]
[1765931919774,3.85254239,2951.5,2951.3,0.002]
[1765931919973,0.46438023,2951.5,2951.4,0.4914]
[1765931920201,0.46438023,2951.5,2951.3,0.002]
[1765931921698,3.85257026,2951.5,2951.3,0.002]
[1765931921866,4.3884288,2951.6,2951.3,0.4569]
[1765931922066,0.46438023,2951.6,2951.5,0.9463]
[1765931922271,0.46538023,2951.9,2951.6,0.4914]
[1765931922472,0.536,2951.8,2951.6,0.4914]
[1765931923511,0.536,2951.8,2951.3,0.73196]
[1765931924203,6.77575634,2951.7,2951.3,0.27706]
[1765931924385,3.38787817,2951.7,2951.3,0.27706]
[1765931924573,3.38787817,2951.7,2951.3,0.73196]
[1765931925073,3.38787817,2951.7,2951.4,0.4549]
[1765931925635,6.77575634,2951.7,2951.3,0.27706]
[1765931926508,3.38787817,2951.7,2951.3,0.27706]
[1765931926809,3.38787817,2951.7,2951.3,0.73196]
[1765931927188,0.001,2951.9,2951.8,0.4914]
[1765931927386,0.001,2951.9,2951.8,5.77664649]
[1765931927583,0.001,2951.9,2951.8,6.35431114]
[1765931928314,0.001,2952.5,2952.4,4.51767492]
[1765931928467,0.537,2952.5,2952.4,9.34802141]
[1765931928672,0.001,2953.7,2953.0,0.9463]
[1765931928873,0.537,2953.1,2953.0,0.9463]
[1765931929801,0.001,2953.1,2953.0,0.9463]
[1765931930120,0.537,2953.1,2953.0,0.9463]
[1765931930302,0.537,2953.1,2953.0,4.33268672]
[1765931930484,0.537,2953.1,2953.0,4.76595539]
[1765931930828,0.001,2953.1,2953.0,4.76595539]
[1765931932509,0.001,2953.1,2953.0,1.37956867]
[1765931932715,0.001,2953.1,2952.5,3.38688597]
[1765931933017,0.001,2953.1,2952.6,0.4549]
[1765931933310,0.001,2953.1,2953.0,0.4914]
[1765931933484,0.537,2953.1,2953.0,0.4914]
[1765931934813,0.537,2953.1,2953.0,0.9463]
[1765931935011,3.92327205,2953.1,2953.0,0.9463]
[1765931935204,3.92527205,2953.1,2952.5,0.4549]
[1765931935408,3.92527205,2953.1,2952.6,0.85751665]
[1765931936112,7.3115441,2953.1,2952.4,0.1843]
[1765931936910,3.92527205,2953.1,2952.5,0.4549]
[1765931937220,3.92527205,2953.1,2952.4,3.57135871]
[1765931937221,0.537,2953.1,2953.0,0.4914]
[1765931937411,0.537,2953.1,2953.0,0.9463]
[1765931937607,0.539,2953.1,2952.4,3.57135871]
[1765931937811,0.537,2953.1,2953.0,0.4914]
[1765931938212,0.539,2953.1,2952.8,0.4549]
[1765931938720,0.537,2953.1,2953.0,0.9463]
[1765931939619,0.537,2953.1,2952.4,0.1843]
[1765931939620,0.539,2953.1,2952.7,0.4549]
[1765931939824,3.92529354,2953.1,2952.7,0.4549]
[1765931940193,0.539,2953.1,2952.7,0.4549]
[1765931940391,0.537,2953.1,2953.0,0.4914]
[1765931940605,3.92327205,2953.1,2952.8,0.4549]
[1765931941326,3.92327205,2953.1,2952.4,0.6392]
[1765931941627,0.002,2953.0,2952.2,0.1843]
[1765931941814,25.28564,2952.8,2952.2,0.1843]
[1765931942127,0.536,2952.7,2952.2,3.38728322]
[1765931942329,0.536,2952.7,2952.1,3.38738491]
[1765931942499,0.536,2952.7,2952.1,3.84228491]
[1765931942824,0.536,2952.7,2952.3,0.4549]
[1765931944003,0.536,2952.7,2952.6,0.4893]
[1765931944204,3.92473078,2952.7,2952.0,0.1843]
[1765931944407,0.002,2952.6,2952.5,0.002]
[1765931947507,3.92273078,2952.7,2952.5,0.002]
[1765931948943,0.002,2952.6,2952.5,0.002]
[1765931951749,3.92273078,2952.7,2952.6,0.4893]
[1765931952357,3.92473078,2952.7,2952.5,0.002]
[1765931952528,3.92273078,2952.7,2952.5,0.002]
[1765931953230,0.536,2952.7,2952.6,0.4893]
[1765931953432,0.536,2952.7,2952.6,0.9502]
[1765931954152,3.92273078,2952.7,2952.6,0.4893]
[1765931956353,3.92473078,2952.7,2952.5,0.002]
[1765931956741,0.538,2952.7,2952.5,0.002]
[1765931957152,3.92475283,2952.7,2952.5,0.002]
[1765931957358,3.92575283,2952.7,2952.5,0.002]
[1765931959164,3.92575283,2952.7,2952.6,0.4893]
[1765931960048,3.92375283,2952.7,2952.6,0.9502]
[1765931960858,3.92375283,2952.7,2952.6,0.4893]
[1765931961366,3.92575283,2952.7,2952.6,0.4893]
[1765931962074,0.537,2952.7,2952.6,0.9502]
[1765931962567,0.537,2952.7,2952.5,0.002]
[1765931962568,0.002,2952.6,2952.5,0.002]
[1765931963856,0.537,2952.7,2952.6,0.4893]
[1765931964041,0.537,2952.7,2952.6,0.9502]
[1765931965457,0.002,2952.6,2952.5,0.002]
[1765931966164,3.92373078,2952.7,2952.5,0.002]
[1765931966539,0.537,2952.7,2952.5,0.002]
[1765931966739,0.537,2952.7,2952.6,0.4893]
[1765931966942,0.537,2952.7,2952.6,0.9502]
[1765931969277,0.537,2952.7,2952.6,1.38411487]
[1765931971262,0.537,2952.7,2952.6,0.9502]
[1765931972180,0.537,2952.7,2952.6,4.33704549]
[1765931972478,0.537,2952.7,2952.6,0.9502]
[1765931972843,0.537,2952.7,2952.6,4.33704549]
[1765931975692,0.537,2952.7,2952.6,0.9502]
[1765931977075,0.539,2952.7,2952.5,2.1094]
[1765931977478,0.537,2952.7,2952.6,0.4607]
[1765931977869,0.539,2952.7,2952.5,2.1094]
[1765931978290,0.537,2952.7,2952.5,2.588]
[1765931978494,3.92376163,2952.7,2952.5,2.1094]
[1765931979181,0.002,2952.6,2952.5,2.1094]
[1765931979390,0.537,2952.7,2952.5,2.1094]
[1765931981061,0.537,2952.7,2952.5,0.002]
[1765931982700,0.537,2952.7,2952.5,0.4806]
[1765931984772,3.92374583,2952.7,2952.5,0.4806]
[1765931984973,0.002,2952.6,2952.5,0.002]
[1765931985195,0.004,2952.6,2952.5,0.002]
[1765931985602,0.002,2952.6,2952.5,0.002]
[1765931986378,0.004,2952.6,2952.5,0.002]
[1765931987908,0.002,2952.6,2952.5,0.002]
[1765931990305,37.8815152,2952.6,2952.5,0.002]
[1765931990492,36.42680562,2952.6,2952.5,0.002]
[1765931991397,40.46381911,2952.6,2952.5,0.002]
[1765931992813,39.42654411,2952.6,2952.5,0.002]
[1765931994399,39.43502511,2952.6,2952.5,0.002]
[1765931994592,42.81397426,2952.6,2952.5,0.002]
[1765931994798,38.84733926,2952.6,2952.5,0.002]
[1765931995318,37.63042626,2952.6,2952.5,0.002]
[1765931995507,37.10985226,2952.6,2952.5,0.002]
[1765931995816,30.90676287,2952.6,2952.5,0.002]
[1765931996619,34.34811087,2952.6,2952.5,0.002]
[1765931996922,24.72494587,2952.6,2952.5,0.002]
[1765931997103,24.47243387,2952.6,2952.5,0.002]
[1765931997521,25.42519387,2952.6,2952.5,0.002]
[1765931997703,7.63967887,2952.6,2952.5,0.002]
[1765931997902,4.26072972,2952.6,2952.5,0.002]
[1765931999722,3.85522572,2952.6,2952.5,0.002]
[1765931999926,3.38684549,2952.6,2952.5,0.002]
[1765932000224,3.38984549,2952.6,2952.5,0.002]
[1765932000759,40.46481911,2952.6,2952.5,0.002]
[1765932000926,0.002,2952.4,2951.5,0.4786]
[1765932001104,0.002,2952.2,2951.5,0.4786]
[1765932001925,0.002,2952.1,2951.5,0.4786]
[1765932002333,6.77460876,2952.2,2951.5,0.4786]
[1765932002828,3.38730438,2952.2,2951.5,3.38810706]
[1765932003027,3.92519373,2952.3,2952.0,0.4786]
[1765932003191,0.536,2952.3,2952.2,0.4607]
[1765932003522,0.002,2952.2,2951.5,0.66836894]
[1765932003694,0.002,2952.1,2951.3,3.8688561]
[1765932004094,6.77683824,2952.1,2951.3,3.8688561]
[1765932004295,6.77683824,2952.1,2951.4,0.4787]
[1765932004928,0.002,2952.0,2951.3,0.002]
[1765932005105,1.55442574,2951.9,2951.3,0.002]
[1765932006337,0.002,2951.4,2951.3,0.002]
[1765932006635,0.538,2951.4,2951.3,0.002]
[1765932006842,0.54,2951.4,2951.3,0.002]
[1765932008334,3.92822253,2951.4,2951.3,0.002]
[1765932008830,3.92622253,2951.4,2951.3,0.002]
[1765932010735,0.538,2951.4,2951.3,0.002]
[1765932011616,0.536,2951.4,2951.3,0.9731]
[1765932012026,0.663,2952.2,2951.4,0.4787]
[1765932012339,0.46438023,2952.0,2951.9,0.4924]
[1765932012539,1.00238023,2952.0,2951.7,0.4787]
[1765932012931,4.3899726,2952.0,2951.7,0.4787]
[1765932013258,0.536,2952.0,2951.9,0.4924]
[1765932013438,0.536,2952.0,2951.9,0.9711]
[1765932013812,3.38734519,2952.2,2951.9,0.9711]
[1765932014019,0.536,2952.0,2951.9,0.9711]
[1765932014902,0.536,2952.0,2951.9,0.4924]
[1765932015102,0.536,2952.0,2951.9,0.9711]
[1765932015535,0.536,2952.0,2951.6,0.4787]
[1765932015840,0.536,2952.0,2951.7,0.4787]
[1765932016439,0.536,2952.0,2951.9,0.4924]
[1765932017106,0.536,2952.0,2951.9,0.9711]
[1765932017741,0.536,2952.0,2951.9,0.4924]
[1765932018420,0.536,2952.0,2951.9,0.9711]
[1765932021560,0.536,2952.0,2951.9,10.56183802]
[1765932021739,3.38709284,2952.4,2952.1,0.1906]
[1765932022064,0.538,2952.3,2952.0,0.4787]
[1765932023531,0.536,2952.3,2952.2,0.4924]
[1765932023847,0.536,2952.3,2952.2,0.9711]
[1765932028371,0.536,2952.3,2952.2,0.4924]
[1765932028571,0.538,2952.3,2952.1,0.1906]
[1765932029170,0.538,2952.3,2952.1,0.6693]
[1765932029371,0.536,2952.3,2952.1,0.6693]
[1765932029555,0.536,2952.3,2952.2,0.4924]
[1765932030640,0.002,2952.0,2951.9,0.002]
[1765932030973,7.70278799,2952.3,2951.9,0.002]
[1765932030974,0.536,2952.3,2951.9,0.4807]
[1765932031571,3.92320673,2952.3,2951.9,0.4807]
[1765932034455,0.536,2952.3,2951.9,0.4807]
[1765932035975,0.536,2952.3,2952.0,0.4717]
[1765932038649,0.536,2952.3,2952.2,0.4744]
[1765932039476,0.536,2952.3,2952.2,0.9461]
[1765932040072,0.536,2952.3,2952.2,0.4744]
[1765932040962,0.536,2952.3,2952.2,4.33340438]
[1765932041276,0.536,2952.3,2951.9,0.002]
[1765932041481,0.536,2952.3,2952.2,0.9461]
[1765932042974,0.536,2952.3,2952.1,0.6628]
[1765932043577,0.536,2952.3,2952.2,0.4744]
[1765932043776,0.536,2952.3,2952.2,0.9461]
[1765932044048,0.536,2952.3,2952.2,0.4744]
[1765932044549,0.536,2952.3,2952.2,0.9461]
[1765932046577,0.538,2952.3,2951.9,3.86134863]
[1765932046784,0.536,2952.3,2952.0,0.4717]
[1765932047084,0.536,2952.3,2952.2,0.9461]
[1765932047986,0.536,2952.3,2952.2,0.4744]
[1765932050058,0.536,2952.3,2952.1,0.1911]
[1765932050683,0.536,2952.3,2951.9,0.002]
[1765932051089,0.002,2952.0,2951.9,0.002]
[1765932053090,0.004,2952.0,2951.9,0.002]
[1765932055213,30.409504,2952.0,2951.9,0.002]
[1765932055494,29.32615038,2952.0,2951.9,0.002]
[1765932056158,4.72453338,2952.0,2951.9,0.002]
[1765932056367,0.002,2951.5,2951.4,0.002]
[1765932056661,18.890034,2951.5,2951.4,0.002]
[1765932057080,22.30112674,2951.5,2951.4,0.002]
[1765932057915,22.76550697,2951.5,2951.4,0.002]
[1765932058276,25.39443825,2951.5,2951.4,0.002]
[1765932065127,7.01941925,2951.5,2951.4,0.002]
[1765932065323,12.94482697,2951.5,2951.4,0.002]
[1765932066687,13.08064325,2951.5,2951.4,0.002]
[1765932068600,30.004,2950.9,2950.7,0.002]
[1765932068789,30.87388423,2950.8,2950.7,0.002]
[1765932068987,30.87388423,2950.8,2950.6,0.002]
[1765932068988,0.002,2950.7,2950.6,0.002]
[1765932069193,0.538,2950.7,2950.6,0.002]
[1765932069718,0.54,2950.7,2950.6,0.002]
[1765932070416,4.39340656,2950.7,2950.6,0.002]
[1765932070618,4.39140656,2950.7,2950.6,0.002]
[1765932070827,1.00238023,2950.7,2950.6,0.002]
[1765932071028,4.39140656,2950.7,2950.6,0.002]
[1765932071724,3.79388401,2951.3,2950.8,0.4665]
[1765932071725,0.46438023,2951.2,2950.8,0.4665]
[1765932071938,1.0025,2951.1,2951.0,0.946]
[1765932072137,0.536,2951.1,2951.0,0.946]
[1765932072607,1.00038023,2951.1,2951.0,0.946]
[1765932072802,1.00038023,2951.1,2951.0,0.4795]
[1765932073922,4.3889472,2951.1,2951.0,0.4795]
[1765932074632,4.3889472,2951.1,2951.0,0.4815]
[1765932075135,3.38833734,2951.3,2951.0,0.4815]
[1765932075136,3.38841582,2951.3,2951.0,0.4815]
[1765932075327,0.536,2951.1,2951.0,0.4815]
[1765932078302,4.40692564,2951.4,2951.1,0.1909]
[1765932078498,1.00038023,2951.3,2951.2,0.4795]
[1765932078905,1.00238023,2951.3,2951.0,0.4685]
[1765932079129,4.3908206,2951.3,2951.0,0.002]
[1765932080540,4.3908206,2951.3,2951.0,0.4685]
[1765932081035,0.002,2951.1,2951.0,0.002]
[1765932083510,3.92435757,2951.3,2951.0,0.002]
[1765932083942,7.31271514,2951.3,2951.0,0.002]
[1765932084240,0.002,2951.1,2951.0,0.002]
[1765932090646,0.004,2951.1,2951.0,0.002]
[1765932090945,40.00302963,2951.1,2951.0,0.002]
[1765932091148,30.004,2950.7,2950.6,0.002]
[1765932091448,30.54,2950.7,2950.6,0.002]
[1765932091651,31.00438023,2950.7,2950.6,0.002]
[1765932091945,32.0232445,2950.7,2950.6,0.002]
[1765932092245,35.80769765,2950.7,2950.6,0.002]
[1765932092820,39.21364245,2950.7,2950.6,0.002]
[1765932096338,45.42871254,2950.7,2950.6,0.002]
[1765932096947,15.42871254,2950.7,2950.6,0.002]
[1765932097144,42.04976339,2950.7,2950.6,0.002]
[1765932098574,42.04976339,2950.7,2949.8,0.002]
[1765932098575,30.46838023,2950.1,2949.8,0.002]
[1765932098769,31.00438023,2950.1,2949.8,0.002]
[1765932098950,31.0212987,2950.1,2949.8,0.002]
[1765932099153,30.7781187,2950.1,2949.8,0.002]
[1765932099873,34.15706785,2950.1,2949.8,0.002]
[1765932100053,37.98996345,2950.1,2949.8,0.002]
[1765932103483,14.655513,2949.9,2949.8,0.002]
[1765932103774,13.098693,2949.9,2949.8,0.002]